bitfinex-derivatives/quotes_ETHF0:USTF0_20241022
["timestamp","ask_amount","ask_price","bid_price","bid_amount"]
[1729563611730,1.76,2652.2,2652.0,1.36]
[1729563611934,0.4,2652.2,2652.1,1.36]
[1729563612130,1.76,2652.2,2652.1,1.36]
[1729563612341,1.76,2652.2,2652.1,42.53719]
[1729563612832,1.36,2652.2,2652.1,42.53719]
[1729563613136,0.414,2652.3,2652.2,0.37717]
[1729563613334,1.77,2652.5,2652.3,0.37716]
[1729563613633,0.41,2652.5,2652.4,1.73714]
[1729563613832,3.2078,2652.7,2652.4,1.73714]
[1729563613833,3.2078,2653.2,2652.4,1.36]
[1729563614134,3.2078,2653.2,2652.9,1.36]
[1729563614135,1.36,2653.1,2652.9,1.36]
[1729563614332,1.36,2653.1,2653.0,1.36]
[1729563615130,1.36,2653.1,2652.9,2.1756]
[1729563615427,1.36,2653.0,2652.9,1.36]
[1729563615733,2.1676,2653.0,2652.9,1.36]
[1729563616332,0.8076,2653.0,2652.8,0.37709]
[1729563616529,0.8076,2653.0,2652.7,0.37709]
[1729563616733,0.8076,2653.0,2652.8,0.37709]
[1729563617838,0.8076,2653.0,2652.9,3.2078]
[1729563620342,3.7476,2653.0,2652.9,3.2078]
[1729563620740,4.12466,2653.0,2652.9,3.2078]
[1729563620938,7.89426,2653.0,2652.9,3.2078]
[1729563621137,10.7863836,2653.0,2652.1,44.38498]
[1729563621337,2.94,2652.7,2652.1,3.2078]
[1729563621644,0.8083,2652.6,2652.3,0.37715]
[1729563621837,0.8083,2652.6,2652.1,46.9478]
[1729563622137,0.8083,2652.6,2652.5,0.37713]
[1729563622337,0.8083,2652.6,2652.4,3.2078]
[1729563622338,0.3976,2653.0,2652.4,3.2078]
[1729563622539,0.4142,2652.9,2652.7,0.3771]
[1729563622738,0.4142,2652.9,2652.6,0.37712]
[1729563622934,0.4142,2652.9,2652.5,1.2063]
[1729563623139,0.4142,2652.9,2652.5,1.58342]
[1729563624340,0.4142,2652.9,2652.5,0.4041]
[1729563625049,0.4142,2652.9,2652.4,3.2078]
[1729563625348,0.37709,2652.8,2652.4,3.2078]
[1729563626247,0.37709,2652.8,2652.4,3.58494]
[1729563627740,0.37709,2652.8,2652.4,3.98924]
[1729563628045,0.4142,2652.9,2652.6,0.37711]
[1729563628443,0.4142,2652.9,2652.5,2.94]
[1729563628444,0.4142,2652.9,2652.7,0.3771]
[1729563629050,0.4142,2652.9,2652.6,0.37711]
[1729563629850,0.4142,2652.9,2652.5,2.94]
[1729563630150,0.4142,2652.9,2652.6,0.3771]
[1729563634349,0.4142,2652.9,2652.5,2.94]
[1729563634653,0.4142,2652.9,2652.7,0.37709]
[1729563635352,0.4142,2652.9,2652.8,0.3964]
[1729563635751,0.4142,2652.9,2652.8,0.77349]
[1729563635953,0.4142,2652.9,2652.8,0.3964]
[1729563638252,1.7742,2652.9,2652.8,1.7564]
[1729563639645,1.7742,2652.9,2652.8,1.36]
[1729563642561,0.4142,2652.9,2652.8,1.36]
[1729563643763,0.4142,2652.9,2652.8,1.73709]
[1729563644352,0.4142,2652.9,2652.8,1.36]
[1729563645153,4.9896,2653.4,2653.0,0.37705]
[1729563645355,0.412,2653.3,2653.2,1.36]
[1729563646158,1.772,2653.3,2653.2,1.36]
[1729563647264,0.412,2653.3,2653.2,1.36]
[1729563651957,1.772,2653.3,2653.1,1.36]
[1729563652357,1.36,2653.2,2653.1,1.36]
[1729563652966,1.36,2653.2,2653.0,1.36]
[1729563653563,1.772,2653.3,2653.1,1.36]
[1729563654167,0.412,2653.3,2653.2,1.36]
[1729563654759,1.772,2653.3,2653.2,1.36]
[1729563655576,1.772,2653.3,2653.1,1.36]
[1729563656480,1.36,2653.3,2653.1,1.36]
[1729563657378,3.5848,2653.5,2653.2,1.36]
[1729563657379,1.36,2653.4,2653.2,1.36]
[1729563657573,1.36,2653.4,2653.3,1.36]
[1729563657878,3.2078,2653.5,2653.3,1.36]
[1729563657879,4.94479,2653.5,2653.3,1.36]
[1729563658378,3.2078,2653.5,2653.3,1.36]
[1729563658573,3.2078,2653.5,2653.4,1.36]
[1729563658769,4.5678,2653.5,2653.4,1.36]
[1729563658965,8.3366,2653.5,2653.4,1.36]
[1729563664176,4.5678,2653.5,2653.4,1.36]
[1729563664978,4.94479,2653.5,2653.4,1.36]
[1729563665178,4.94479,2653.5,2653.3,42.16]
[1729563665487,1.36,2653.4,2653.3,42.16]
[1729563665776,4.5678,2653.5,2653.3,42.16]
[1729563665974,4.5678,2653.5,2653.4,1.36]
[1729563666175,3.2078,2654.2,2653.4,1.36]
[1729563666384,1.73694,2653.9,2653.8,1.36]
[1729563666682,1.36,2653.9,2653.7,1.36]
[1729563666877,1.36,2653.7,2653.6,1.36]
[1729563668172,6.488,2653.7,2653.0,3.2078]
[1729563668376,6.488,2653.7,2653.0,4.5678]
[1729563668377,1.36,2653.1,2653.0,4.5678]
[1729563668572,4.1502,2653.8,2653.0,4.5678]
[1729563668573,1.36,2653.2,2653.0,4.5678]
[1729563668785,1.73704,2653.2,2653.0,4.5678]
[1729563670181,1.36,2653.1,2653.0,4.5678]
[1729563670379,0.37704,2653.2,2653.0,3.2078]
[1729563670575,0.37704,2653.2,2652.6,3.31711]
[1729563670576,0.37704,2653.1,2652.6,2.94]
[1729563670772,0.37711,2652.7,2652.5,3.2078]
[1729563670977,0.37712,2652.6,2652.5,3.2078]
[1729563671184,0.37711,2652.7,2652.5,3.2078]
[1729563671491,2.94,2653.0,2652.5,3.2078]
[1729563671680,0.37709,2652.8,2652.5,3.2078]
[1729563673981,3.24524399,2653.0,2652.5,3.2078]
[1729563674179,0.3771,2652.7,2652.5,3.2078]
[1729563675477,3.24524399,2653.0,2652.5,3.2078]
[1729563675478,0.3771,2652.8,2652.5,3.2078]
[1729563675882,0.3771,2652.7,2652.5,3.2078]
[1729563676679,3.24524399,2653.0,2652.5,3.2078]
[1729563677286,2.94,2652.7,2652.4,40.8]
[1729563677478,2.94,2652.7,2652.1,3.2078]
[1729563677786,0.37715,2652.4,2652.1,3.2078]
[1729563678086,0.37715,2652.4,2652.2,40.8]
[1729563678482,0.37715,2652.4,2652.1,3.2078]
[1729563678881,2.94,2652.7,2652.1,44.0078]
[1729563679183,0.37715,2652.4,2652.1,44.0078]
[1729563680183,0.37717,2652.2,2652.1,44.0078]
[1729563680385,2.94,2652.3,2651.5,3.2078]
[1729563680585,4.7132,2652.6,2651.5,3.2078]
[1729563680586,2.94,2652.1,2651.5,3.2078]
[1729563680791,0.06140164,2652.0,2651.6,40.8]
[1729563681789,0.43860164,2652.0,2651.6,40.8]
[1729563681991,0.3772,2652.0,2651.6,40.8]
[1729563682190,2.94,2652.1,2651.6,40.8]
[1729563682396,0.06140801,2652.0,2651.6,40.8]
[1729563683695,0.43860801,2652.0,2651.6,40.8]
[1729563683994,0.37722,2651.9,2651.6,40.8]
[1729563684291,0.37721,2652.0,2651.6,40.8]
[1729563684487,3.00141149,2651.9,2651.6,40.8]
[1729563684696,0.37724,2651.7,2651.6,40.8]
[1729563684894,0.37724,2651.7,2651.5,3.2078]
[1729563684895,2.94,2651.7,2651.5,3.2078]
[1729563685192,0.37726,2651.6,2651.5,3.2078]
[1729563685388,0.37726,2651.6,2651.5,44.0078]
[1729563685985,7.65495917,2652.2,2651.5,3.2078]
[1729563686186,0.37722,2651.9,2651.5,3.2078]
[1729563686385,0.37722,2651.9,2651.5,40.8]
[1729563686596,0.37723,2651.8,2651.5,40.8]
[1729563689693,3.23573637,2651.9,2651.5,40.8]
[1729563689895,3.61296637,2651.9,2651.5,40.8]
[1729563690488,4.4218,2652.2,2651.5,40.8]
[1729563690489,3.2078,2652.2,2651.5,40.8]
[1729563690693,0.37721,2652.0,2651.5,44.0078]
[1729563691597,0.37719,2652.1,2651.5,44.38507]
[1729563691998,6.82818173,2652.2,2651.6,0.37725]
[1729563692494,6.82818173,2652.2,2651.5,44.0078]
[1729563692495,6.45100173,2652.2,2651.5,44.0078]
[1729563692704,0.37719,2652.1,2651.5,44.0078]
[1729563692889,3.88818173,2652.2,2651.6,0.37725]
[1729563693094,0.3772,2652.1,2651.5,44.38506]
[1729563693293,0.37721,2652.0,2651.5,44.0078]
[1729563693693,0.37721,2652.0,2651.5,44.38507]
[1729563694791,0.37721,2652.0,2651.5,44.0078]
[1729563697493,0.37721,2652.0,2651.5,44.38507]
[1729563697990,0.37721,2652.0,2651.5,44.0078]
[1729563698601,0.37721,2652.0,2651.5,44.38507]
[1729563698995,0.37721,2652.0,2651.5,44.0078]
[1729563702300,1.36,2651.8,2651.7,1.36]
[1729563703398,1.73724,2651.8,2651.5,44.0078]
[1729563703598,1.36,2651.6,2651.5,40.8]
[1729563704298,1.73726,2651.6,2651.5,40.8]
[1729563704499,1.73726,2651.6,2651.3,1.36]
[1729563704707,1.36,2651.5,2651.3,1.36]
[1729563705201,1.36,2651.5,2651.4,40.8]
[1729563706905,1.73727,2651.5,2651.4,40.8]
[1729563707302,1.36,2651.5,2651.4,40.8]
[1729563707498,1.36,2651.5,2651.4,42.16]
[1729563707700,0.37727,2651.5,2651.4,42.16]
[1729563708101,0.37726,2651.6,2651.4,42.16]
[1729563708303,0.37725,2651.7,2651.5,1.36]
[1729563708503,0.37725,2651.7,2651.6,1.36]
[1729563709098,1.36,2651.8,2651.6,1.36]
[1729563709304,1.73724,2651.8,2651.6,1.36]
[1729563710812,1.36,2651.7,2651.5,1.36]
[1729563711506,1.36,2651.6,2651.4,42.53729]
[1729563712308,1.36,2651.6,2651.4,41.17729]
[1729563712510,1.36,2651.7,2651.5,1.36]
[1729563712812,1.36,2651.7,2651.5,4.5678]
[1729563713013,1.36,2651.7,2651.5,4.94507]
[1729563715014,1.36,2651.7,2651.5,1.73727]
[1729563715815,1.36,2651.7,2651.5,1.36]
[1729563716008,1.36,2651.7,2651.4,41.17728]
[1729563716216,1.36,2651.6,2651.4,42.53728]
[1729563716708,1.36,2651.6,2651.4,41.17728]
[1729563717416,1.36,2651.6,2651.4,42.16]
[1729563717712,1.36,2651.7,2651.5,0.37727]
[1729563718814,3.50549602,2652.2,2651.6,1.36]
[1729563719001,1.36,2652.0,2651.7,1.73723]
[1729563719403,1.36,2651.9,2651.7,1.73723]
[1729563719604,1.36,2651.8,2651.6,1.73725]
[1729563719809,1.36,2651.8,2651.7,0.37724]
[1729563720316,1.36,2651.8,2651.6,1.73725]
[1729563720609,1.36,2651.7,2651.6,1.73725]
[1729563721009,1.36,2651.7,2651.6,5.50845]
[1729563722208,1.36,2651.8,2651.6,5.1312]
[1729563722409,1.36,2651.8,2651.7,0.37724]
[1729563723014,4.5464,2652.5,2651.9,0.3772]
[1729563723015,3.3354,2652.5,2651.9,0.3772]
[1729563723315,3.3354,2652.5,2651.5,3.2078]
[1729563723316,1.36,2652.2,2652.1,1.36]
[1729563723515,1.36,2652.2,2652.1,1.73719]
[1729563723718,1.36,2652.2,2652.1,0.37719]
[1729563725310,1.36,2652.2,2652.0,4.5678]
[1729563725513,1.36,2652.2,2652.1,0.37719]
[1729563727314,1.36,2652.2,2652.0,4.5678]
[1729563727615,1.36,2652.2,2652.1,0.37719]
[1729563728112,1.36,2652.2,2652.0,4.5678]
[1729563728319,1.36,2652.2,2652.1,0.37719]
[1729563729314,1.36,2652.2,2652.0,4.5678]
[1729563729515,1.36,2652.2,2652.1,0.37719]
[1729563731720,1.36,2652.3,2652.2,0.37717]
[1729563731920,1.36,2652.3,2652.2,1.36]
[1729563734218,1.36,2652.3,2652.1,1.73718]
[1729563734423,1.36,2652.2,2652.1,1.73718]
[1729563738025,1.51423628,2652.8,2652.1,1.73718]
[1729563738026,1.36,2652.3,2652.1,4.5678]
[1729563738221,1.36,2652.3,2652.2,0.37717]
[1729563738427,1.36,2652.3,2652.1,1.36]
[1729563738620,1.36,2652.3,2652.1,1.73718]
[1729563738826,1.36,2652.3,2652.1,4.94498]
[1729563739330,1.36,2652.3,2652.2,0.37717]
[1729563739531,1.36,2652.4,2652.2,1.73717]
[1729563739826,1.36,2652.5,2652.3,1.36]
[1729563740020,1.36,2652.5,2652.3,1.73716]
[1729563740228,1.36,2652.4,2652.3,0.37716]
[1729563740428,1.36,2652.5,2652.3,1.36]
[1729563740629,1.36,2652.5,2652.4,0.37714]
[1729563741025,1.36,2652.5,2652.3,1.73715]
[1729563741520,1.36,2652.5,2652.3,1.36]
[1729563741726,1.36,2652.4,2652.2,1.73717]
[1729563743326,1.36,2652.3,2652.1,3.58498]
[1729563743629,1.36,2652.3,2652.1,4.5678]
[1729563743932,1.36,2652.3,2652.1,4.94498]
[1729563745532,0.37714,2652.5,2652.2,1.73717]
[1729563745533,1.36,2652.4,2652.2,1.73717]
[1729563746431,1.36,2652.4,2652.2,1.36]
[1729563746628,1.36,2652.3,2652.1,3.2078]
[1729563746930,0.37719,2652.2,2651.8,1.36]
[1729563747138,1.36,2652.0,2651.8,1.36]
[1729563747524,1.36,2651.9,2651.7,0.37724]
[1729563747825,1.36,2651.9,2651.7,1.36]
[1729563748422,1.36,2651.9,2651.7,1.73724]
[1729563748937,1.36,2651.8,2651.6,3.2078]
[1729563749135,1.36,2651.7,2651.6,3.2078]
[1729563749632,1.36,2651.7,2651.6,4.5678]
[1729563750238,1.73724,2651.7,2651.6,3.2078]
[1729563750626,1.36,2651.7,2651.6,4.5678]
[1729563751032,1.73724,2651.7,2651.6,3.2078]
[1729563752231,1.36,2651.7,2651.6,3.2078]
[1729563752734,1.73724,2651.7,2651.6,3.2078]
[1729563753035,5.50844,2651.7,2651.6,3.2078]
[1729563754529,5.1312,2651.7,2651.5,3.2078]
[1729563754731,0.37724,2651.8,2651.5,3.2078]
[1729563754732,1.36,2651.6,2651.5,3.2078]
[1729563755736,1.73726,2651.6,2651.5,3.2078]
[1729563756738,5.50846,2651.6,2651.5,3.2078]
[1729563757033,1.73726,2651.6,2651.5,3.2078]
[1729563757241,5.50846,2651.6,2651.5,3.2078]
[1729563757731,6.86846,2651.6,2651.5,3.2078]
[1729563758037,6.86846,2651.6,2651.0,1.36]
[1729563758038,0.37729,2651.4,2651.0,1.36]
[1729563758232,1.36,2651.1,2650.9,3.2078]
[1729563758426,1.36,2651.0,2650.9,3.2078]
[1729563758838,1.36,2651.0,2650.9,44.0078]
[1729563761039,1.36,2651.0,2650.9,40.8]
[1729563762838,1.73734,2651.0,2650.9,40.8]
[1729563763146,1.36,2651.0,2650.5,3.58521]
[1729563763439,1.36,2650.6,2650.5,3.58521]
[1729563763832,1.36,2650.6,2650.5,3.2078]
[1729563764144,1.36,2650.6,2650.5,44.0078]
[1729563764533,1.36,2650.6,2650.5,44.38521]
[1729563765042,1.36,2650.6,2650.5,45.74521]
[1729563766340,3.2078,2651.2,2650.5,45.3678]
[1729563766546,1.36,2650.9,2650.8,1.73737]
[1729563766748,1.36,2650.9,2650.8,3.58517]
[1729563767034,1.36,2650.9,2650.7,1.73738]
[1729563767239,1.36,2650.8,2650.7,1.73738]
[1729563767641,1.36,2650.8,2650.7,0.37738]
[1729563767837,1.36,2650.8,2650.6,1.73739]
[1729563768037,1.36,2650.7,2650.6,1.7374]
[1729563769340,0.37733,2651.1,2650.6,1.73739]
[1729563769648,1.36,2650.7,2650.6,1.73739]
[1729563770737,1.36,2650.8,2650.7,0.37737]
[1729563771646,1.36,2650.8,2650.6,1.36]
[1729563771839,1.36,2650.8,2650.6,1.73739]
[1729563772238,1.36,2650.8,2650.7,0.37739]
[1729563774748,1.36,2650.8,2650.6,1.36]
[1729563774949,1.36,2650.8,2650.6,1.73739]
[1729563775353,1.36,2650.8,2650.7,0.37739]
[1729563775849,1.36,2650.8,2650.6,1.73739]
[1729563776645,1.36,2650.8,2650.5,44.0078]
[1729563776646,1.36,2651.0,2650.8,0.37736]
[1729563776947,0.37728,2651.5,2651.0,0.37733]
[1729563777142,1.36,2651.1,2650.9,1.73735]
[1729563777343,1.36,2651.1,2650.9,1.36]
[1729563777549,1.36,2651.1,2650.9,1.73735]
[1729563777954,1.36,2651.0,2650.9,1.73735]
[1729563778143,1.36,2651.0,2650.9,1.36]
[1729563778349,1.36,2651.0,2650.8,4.94516]
[1729563778655,1.36,2651.0,2650.9,1.36]
[1729563778945,1.36,2651.0,2650.9,1.73735]
[1729563781852,1.36,2651.0,2650.8,3.58516]
[1729563782051,1.36,2651.0,2650.8,3.2078]
[1729563782052,1.36,2650.9,2650.8,3.2078]
[1729563782951,1.73736,2650.9,2650.8,3.2078]
[1729563783859,1.36,2650.9,2650.8,3.2078]
[1729563785451,1.36,2650.9,2650.8,4.5678]
[1729563785749,1.36,2651.0,2650.9,0.37736]
[1729563786652,1.36,2651.1,2651.0,0.37733]
[1729563787156,1.36,2651.2,2651.0,1.36]
[1729563787355,7.7442,2652.0,2651.0,4.94514]
[1729563787356,1.36,2651.1,2651.0,4.94514]
[1729563788453,1.36,2651.1,2651.0,3.58514]
[1729563789055,1.36,2651.1,2651.0,4.94514]
[1729563791257,1.36,2651.2,2651.1,0.37733]
[1729563791565,1.36,2651.2,2651.1,1.73733]
[1729563792461,1.36,2651.2,2651.1,0.37733]
[1729563795056,3.2078,2651.7,2651.2,0.37731]
[1729563795057,1.36,2651.3,2651.2,0.37731]
[1729563798059,1.36,2651.3,2651.1,1.36]
[1729563798267,1.36,2651.2,2651.1,1.73732]
[1729563800864,1.36,2651.2,2651.1,1.36]
[1729563801960,1.36,2651.2,2651.1,1.73733]
[1729563802362,1.36,2651.2,2651.1,1.36]
[1729563804069,1.36,2651.2,2651.1,1.73733]
[1729563804869,1.36,2651.2,2651.1,1.36]
[1729563805376,3.2078,2652.0,2651.1,5.132]
[1729563805664,1.36,2651.8,2651.6,1.73726]
[1729563805864,1.36,2651.8,2651.6,4.5678]
[1729563806066,3.5039118,2652.3,2651.7,1.36]
[1729563806368,3.5039118,2652.3,2651.9,1.36]
[1729563806369,1.36,2652.0,2651.9,1.36]
[1729563806661,1.36,2652.0,2651.9,40.8]
[1729563809269,1.7372,2652.0,2651.9,40.8]
[1729563809468,0.37725,2651.7,2651.2,3.58511]
[1729563809658,1.36,2651.3,2651.2,3.58511]
[1729563809857,1.36,2651.3,2651.2,45.74511]
[1729563810172,1.36,2651.4,2651.2,45.74511]
[1729563810362,1.36,2651.4,2651.3,0.3773]
[1729563811464,1.73729,2651.4,2651.2,44.0078]
[1729563811765,1.36,2651.5,2650.9,3.2078]
[1729563811766,0.37732,2651.2,2650.9,3.2078]
[1729563811962,1.36,2651.0,2650.9,3.2078]
[1729563812362,1.73734,2651.0,2650.9,3.2078]
[1729563812564,5.50934,2651.0,2650.9,3.2078]
[1729563813767,5.132,2651.0,2650.9,3.2078]
[1729563814364,5.50934,2651.0,2650.9,3.2078]
[1729563814669,5.132,2651.0,2650.9,3.2078]
[1729563816268,5.50934,2651.0,2650.9,3.2078]
[1729563817071,5.50934,2651.0,2650.6,42.16]
[1729563817271,1.36,2650.7,2650.6,42.16]
[1729563817672,1.36,2650.7,2650.6,45.3678]
[1729563818472,1.36,2650.7,2650.6,42.16]
[1729563818672,1.36,2650.7,2650.6,45.3678]
[1729563818974,1.36,2650.8,2650.6,45.7452]
[1729563819179,1.36,2650.8,2650.6,45.3678]
[1729563819572,1.36,2650.8,2650.6,45.74519]
[1729563819774,1.36,2650.8,2650.6,45.3678]
[1729563821079,1.36,2650.8,2650.7,1.36]
[1729563821272,1.36,2650.9,2650.7,1.36]
[1729563821770,1.36,2650.9,2650.8,1.36]
[1729563825781,0.37733,2651.1,2650.8,1.36]
[1729563825782,0.67051887,2651.4,2650.8,1.73736]
[1729563826079,1.36,2651.0,2650.9,1.36]
[1729563826274,1.36,2651.0,2650.7,0.37738]
[1729563826275,1.36,2651.0,2650.8,1.36]
[1729563826475,1.36,2651.0,2650.8,1.73737]
[1729563827371,1.36,2651.0,2650.9,1.73736]
[1729563827676,1.36,2651.1,2650.9,1.73736]
[1729563827874,1.36,2651.0,2650.9,0.37736]
[1729563828078,1.36,2651.0,2650.8,1.73737]
[1729563828886,1.36,2651.0,2650.8,4.94517]
[1729563829177,1.36,2651.0,2650.8,4.5678]
[1729563829375,1.36,2651.0,2650.8,4.94517]
[1729563833787,1.36,2651.0,2650.8,4.5678]
[1729563833983,1.36,2651.1,2651.0,0.37734]
[1729563834185,1.36,2651.4,2651.1,0.37732]
[1729563834376,1.36,2651.3,2651.1,3.2078]
[1729563834682,1.36,2651.3,2651.1,3.58513]
[1729563834883,1.36,2651.3,2651.2,1.36]
[1729563835979,1.36,2651.4,2651.2,1.73731]
[1729563836382,1.36,2651.4,2651.3,0.3773]
[1729563836594,0.37725,2651.7,2651.3,1.7373]
[1729563836779,1.36,2651.4,2651.3,1.36]
[1729563837085,1.36,2651.4,2651.2,1.73731]
[1729563837285,1.36,2651.3,2651.2,1.73731]
[1729563837884,1.36,2651.3,2651.2,1.36]
[1729563839587,1.36,2651.3,2651.1,4.94512]
[1729563841684,1.36,2651.2,2651.1,3.58513]
[1729563841889,1.36,2651.2,2651.1,0.37733]
[1729563842582,1.36,2651.2,2651.1,3.58513]
[1729563842788,1.36,2651.2,2651.1,4.94513]
[1729563843081,0.37728,2651.5,2651.1,4.94513]
[1729563843082,1.36,2651.3,2651.1,4.94513]
[1729563844286,1.36,2651.2,2651.1,4.94513]
[1729563844891,1.36,2651.2,2651.1,3.58513]
[1729563847389,1.36,2651.3,2651.1,4.5678]
[1729563847693,1.36,2651.3,2651.2,0.37731]
[1729563853897,1.36,2651.3,2651.1,4.94512]
[1729563854293,1.36,2651.3,2651.2,0.37731]
[1729563855900,1.36,2651.4,2651.2,1.73731]
[1729563856395,1.36,2651.3,2651.2,1.73731]
[1729563863798,1.36,2651.3,2651.2,4.94511]
[1729563865005,0.37727,2651.6,2651.2,4.94511]
[1729563865006,1.36,2651.5,2651.2,4.5678]
[1729563865207,1.36,2651.5,2651.3,0.3773]
[1729563866102,0.29764956,2651.9,2651.5,0.37727]
[1729563866404,1.36,2651.9,2651.7,1.36]
[1729563866607,1.36,2651.8,2651.6,0.37726]
[1729563866796,1.36,2651.7,2651.6,0.37726]
[1729563867001,1.36,2651.7,2651.6,41.17726]
[1729563867403,1.36,2651.7,2651.6,40.8]
[1729563868703,1.36,2651.7,2651.6,42.53726]
[1729563869007,0.3772,2652.1,2651.7,0.37724]
[1729563869008,1.36,2651.8,2651.7,0.37724]
[1729563869201,13.40947666,2652.2,2651.7,0.37724]
[1729563869404,1.36,2651.9,2651.7,1.36]
[1729563869600,1.36,2651.9,2651.8,1.36]
[1729563869800,1.36,2652.1,2651.8,1.36]
[1729563870004,13.40946666,2652.2,2651.9,1.36]
[1729563870207,1.36,2652.0,2651.8,1.36]
[1729563870907,1.36,2651.9,2651.8,1.36]
[1729563873718,13.40947666,2652.2,2651.8,1.73723]
[1729563873917,1.36,2651.9,2651.8,1.73723]
[1729563874120,1.36,2651.9,2651.8,1.36]
[1729563881725,1.36,2652.0,2651.8,1.73723]
[1729563881927,1.36,2651.9,2651.8,1.36]
[1729563882528,1.36,2651.9,2651.8,42.16]
[1729563886935,1.36,2652.0,2651.8,42.16]
[1729563887132,3.58497,2652.3,2651.9,1.36]
[1729563887333,3.58497,2652.3,2651.9,1.73722]
[1729563887533,1.36,2652.1,2651.9,1.36]
[1729563887731,0.37718,2652.2,2651.9,1.36]
[1729563887732,1.36,2652.0,2651.9,1.36]
[1729563887933,1.36,2652.0,2651.9,42.16]
[1729563893939,1.36,2652.0,2651.8,1.36]
[1729563894238,0.30707595,2652.5,2651.9,1.36]
[1729563894239,3.51487595,2652.5,2651.9,1.36]
[1729563894434,1.36,2652.0,2651.9,42.16]
[1729563896136,0.37723,2651.9,2651.4,3.2078]
[1729563896339,1.36,2651.5,2651.4,4.5678]
[1729563896544,1.36,2651.5,2651.4,45.3678]
[1729563896940,1.36,2651.6,2651.4,45.3678]
[1729563897237,5.7578,2652.2,2651.6,1.36]
[1729563897238,1.36,2651.7,2651.6,1.36]
[1729563898435,1.36,2651.7,2651.4,44.0078]
[1729563898634,5.7578,2652.2,2651.4,44.0078]
[1729563898635,1.36,2651.5,2651.4,44.0078]
[1729563898841,1.36,2651.5,2651.4,45.3678]
[1729563899934,1.36,2651.6,2651.4,45.3678]
[1729563900534,1.73727,2651.5,2651.4,44.0078]
[1729563900741,1.73727,2651.5,2650.8,3.2078]
[1729563900742,0.37733,2651.2,2650.8,3.2078]
[1729563901038,2.72,2651.5,2651.0,1.36]
[1729563901039,1.36,2651.1,2651.0,1.36]
[1729563901241,1.36,2651.1,2651.0,42.16]
[1729563903345,1.36,2651.2,2651.0,42.16]
[1729563908644,5.50933,2651.1,2651.0,40.8]
[1729563908840,5.50933,2651.1,2650.5,4.5678]
[1729563908841,0.37736,2650.9,2650.5,4.5678]
[1729563909035,1.36,2650.6,2650.5,4.5678]
[1729563909347,1.36,2650.6,2650.5,45.3678]
[1729563909844,1.36,2650.6,2650.5,42.16]
[1729563911139,1.36,2650.6,2650.5,40.8]
[1729563912535,1.36,2650.6,2650.5,42.16]
[1729563912738,0.37734,2651.1,2650.5,45.74521]
[1729563912939,1.36,2650.7,2650.6,1.36]
[1729563913540,1.36,2650.7,2650.5,45.3678]
[1729563913748,1.36,2650.6,2650.5,45.74521]
[1729563914539,1.36,2650.7,2650.5,42.53741]
[1729563914738,1.36,2650.7,2650.5,42.16]
[1729563917639,1.36,2650.6,2650.5,40.8]
[1729563917845,0.37744,2650.4,2649.8,3.58531]
[1729563918144,0.37744,2650.4,2649.0,2.41412838]
[1729563918145,1.36,2649.9,2649.5,3.2078]
[1729563918344,1.36,2649.6,2649.5,4.94536]
[1729563918540,1.36,2649.7,2649.5,4.94536]
[1729563918738,1.36,2649.7,2649.6,40.8]
[1729563925649,3.2078,2650.1,2649.6,41.17754]
[1729563925854,3.2078,2650.1,2649.7,0.37752]
[1729563926050,1.36,2649.8,2649.7,0.37752]
[1729563926354,3.2078,2650.1,2649.8,0.37751]
[1729563926545,3.2078,2650.1,2649.8,41.17751]
[1729563926746,3.2078,2650.1,2649.8,40.8]
[1729563927342,1.36,2649.9,2649.8,40.8]
[1729563929048,2.72,2649.9,2649.8,40.8]
[1729563929249,1.36,2649.9,2649.8,40.8]
[1729563933355,1.36,2649.9,2649.6,3.58533]
[1729563933652,1.36,2649.9,2649.6,3.2078]
[1729563933653,1.36,2649.7,2649.6,3.2078]
[1729563933852,1.36,2649.7,2649.6,44.0078]
[1729563935652,1.36,2649.7,2649.6,44.38534]
[1729563935854,1.36,2649.7,2649.6,44.0078]
[1729563936449,1.36,2649.7,2649.6,45.3678]
[1729563936647,1.36,2649.7,2649.6,45.74534]
[1729563936849,3.2078,2650.2,2649.6,45.3678]
[1729563937162,3.2078,2650.2,2649.9,0.37749]
[1729563937763,1.36,2650.0,2649.9,0.37749]
[1729563939064,1.36,2650.0,2649.7,1.36]
[1729563939248,1.36,2649.9,2649.8,0.37751]
[1729563949273,1.36,2650.0,2649.9,0.3775]
[1729563949472,1.36,2650.0,2649.9,3.5853]